Workbook

Sheet Лист1
C1: ООО "Евразия Снаб"
C2: 660118, г. Красноярск, Северное шоссе, 17К, оф. 308
C3: ИНН 2464230865 / КПП 246601001 / ОГРН 1102468060265
C4: тел. (391) 214-69-88, 215-22-69
C5: E-mail: smk24@list.ru Сайт: eurasia-snab.ru
C7: Прайс-лист от 27.04.2017 г.
A9: Наименование | B9: Марка стали | C9: Размер (м) | D9: Цена за тонну | E9: Цена за штуку | F9: Вес штуки | G9: Вес метра
A10: Арматура AIII, ГОСТ 5781-82
A11: Ø 10 | B11: 35ГС | C11: 11.7 | D11: 35000 | E11: =(D11+D11*5%)/(1000/F11) -> 290.325 | F11: =ROUNDUP(G11*C11,1) -> 7.9 | G11: 0.67
A12: Ø 12 | B12: 35ГС | C12: 11.7 | D12: 35000 | E12: 400.575 | F12: 10.9 | G12: 0.93
A13: Ø 14 | B13: 35ГС | C13: 11.7 | D13: 35000 | E13: 562.275 | F13: 15.3 | G13: 1.3
A14: Ø 16 | B14: 35ГС | C14: 11.7 | D14: 35000 | E14: 716.625 | F14: 19.5 | G14: 1.66
A15: Ø 18 | B15: 35ГС | C15: 11.7 | D15: 35000 | E15: 904.05 | F15: 24.6 | G15: 2.1
A16: Ø 20 | B16: 35ГС | C16: 11.7 | D16: 35000 | E16: 1076.775 | F16: 29.3 | G16: 2.5
A17: Ø 8 | B17: 25Г2С | C17: 6 | D17: 41500 | E17: 122.01 | F17: 2.8 | G17: 0.46
A18: Ø 10 | B18: 25Г2С, А500С | C18: 11.7 | D18: 36000 | E18: 306.18 | F18: 8.1 | G18: 0.69
A19: Ø 12 | B19: 25Г2С, А500С | C19: 11.7 | D19: 36000 | E19: 412.02 | F19: 10.9 | G19: 0.93
A20: Ø 14 | B20: 25Г2С, А500С | C20: 11.7 | D20: 36000 | E20: 578.34 | F20: 15.3 | G20: 1.3
A21: Ø 16 | B21: 25Г2С, А500С | C21: 11.7 | D21: 36000 | E21: 737.1 | F21: 19.5 | G21: 1.66
A22: Ø 18 | B22: 25Г2С, А500С | C22: 11.7 | D22: 36000 | E22: =(D22+D22*3%)/(1000/F22) -> 912.168 | F22: 24.6 | G22: 2.1
A23: Ø 20 | B23: 25Г2С, А500С | C23: 11.7 | D23: 36000 | E23: 1086.444 | F23: 29.3 | G23: 2.5
A24: Ø 25 | B24: 25Г2С, А500С | C24: 11.7 | D24: 37000 | E24: 1783.548 | F24: 46.8 | G24: 4
A25: Балка двутавровая, ГОСТ 26020-83, ГОСТ 8239, СТО-АСЧМ
A26: 10 | B26: Ст.3пс | C26: 12 | D26: 52000 | E26: =(D26+D26*3%)/(1000/F26) -> 6491.472 | F26: =ROUNDUP(G26*C26,1) -> 121.2 | G26: 10.1
A27: 12Б1 | B27: Ст.3пс | C27: 11.7 | D27: 54000 | E27: 8009.28 | F27: 144 | G27: 12.3
A28: 14 | B28: Ст.3пс | C28: 12 | D28: 50000 | E28: 8837.4 | F28: 171.6 | G28: 14.3
A29: 14Б1 | B29: Ст.3пс | C29: 11.7 | D29: 53000 | E29: 7282.306 | F29: 133.4 | G29: 11.4
A30: 16Б1 | B30: Ст.3пс | C30: 11.7 | D30: 50000 | E30: 7956.75 | F30: 154.5 | G30: 13.2
A31: 18Б1 | B31: Ст.3пс | C31: 12 | D31: 50000 | E31: 9949.8 | F31: 193.2 | G31: 16.1
A32: 20Б1 | B32: Ст.3пс | C32: 12 | D32: 64000 | E32: 18431.232 | F32: 279.6 | G32: 23.3
A33: 20К1 | B33: Ст.3пс | C33: 12 | D33: 64000 | E33: 33302.784 | F33: 505.2 | G33: 42.1
A34: 20Ш1 | B34: Ст.3пс | C34: 12 | D34: 67000 | E34: 26002.968 | F34: 376.8 | G34: 31.4
A35: 25Б1 | B35: Ст.3пс | C35: 12 | D35: 67000 | E35: 21779.556 | F35: 315.6 | G35: 26.3
A36: 25К1 | B36: Ст.3пс | C36: 12 | D36: 65000 | E36: 50774.88 | F36: 758.4 | G36: 63.2
A37: 25Ш1 | B37: Ст.3пс | C37: 12 | D37: 67000 | E37: 37016.964 | F37: 536.4 | G37: 44.7
A38: 30Б1 | B38: Ст.3пс | C38: 12 | D38: 66000 | E38: 26022.744 | F38: 382.8 | G38: 31.9
A39: 30К1 | B39: Ст.3пс | C39: 12 | D39: 65000 | E39: 70377.84 | F39: 1051.2 | G39: 87.6
A40: 30Ш1 | B40: Ст.3пс | C40: 12 | D40: 67000 | E40: 47616.9 | F40: 690 | G40: 57.5
A41: 35Б1 | B41: Ст.3пс | C41: 12 | D41: 67000 | E41: 32793.552 | F41: 475.2 | G41: 39.6
A42: 35К1 | B42: Ст.3пс | C42: 12 | D42: 65000 | E42: 88132.98 | F42: 1316.4 | G42: 109.7
A43: 35Ш1 | B43: Ст.3пс | C43: 12 | D43: 67000 | E43: 54821.544 | F43: 794.4 | G43: 66.2
A44: 40Б1 | B44: Ст.3пс | C44: 12 | D44: 52000 | E44: 31364.736 | F44: 585.6 | G44: 48.8
A45: 40Ш1 | B45: Ст.3пс | C45: 12 | D45: 52000 | E45: 57459.168 | F45: 1072.8 | G45: 89.4
A46: 45Б1 | B46: Ст.3пс | C46: 12 | D46: 52000 | E46: 38884.56 | F46: 726 | G46: 60.5
A47: 45Ш1 | B47: Ст.3пс | C47: 12 | D47: 52000 | E47: 79890.096 | F47: 1491.6 | G47: 124.3
A48: 45М | B48: Ст.3пс | C48: 12 | D48: 67000 | E48: 65835.54 | F48: 954 | G48: 79.5
A49: 50Б1 | B49: Ст.3пс | C49: 12 | D49: 52000 | E49: 47432.736 | F49: 885.6 | G49: 73.8
A50: Лист х/к, ГОСТ 16523-97, ГОСТ 19904-90
A51: 0.5 | B51: Ст.08пс | C51: 1.25х2.5 | D51: 55000 | E51: =(D51+D51*3%)/(1000/F51) -> 736.45 | F51: =ROUNDUP(G51*(1.25*2.5),1) -> 13 | G51: 4.15
A52: 0.7 | B52: Ст.08пс | C52: 1.25х2.5 | D52: 54000 | E52: 1012.284 | F52: 18.2 | G52: 5.8
A53: 1 | B53: Ст.08пс | C53: 1.25х2.5 | D53: 53000 | E53: 1386.586 | F53: 25.4 | G53: 8.1
A54: 1.2 | B54: Ст.08пс | C54: 1.25х2.5 | D54: 53000 | E54: 1659.536 | F54: 30.4 | G54: 9.7
A55: 1.5 | B55: Ст.08пс | C55: 1.25х2.5 | D55: 53000 | E55: 2030.748 | F55: 37.2 | G55: 11.9
A56: 2 | B56: Ст.08пс | C56: 1.25х2.5 | D56: 53000 | E56: 2696.746 | F56: 49.4 | G56: 15.8
A57: 2.5 | B57: Ст.08пс | C57: 1.25х2.5 | D57: 53000 | E57: 3433.711 | F57: 62.9 | G57: 20.1
A58: 3 | B58: Ст.08пс | C58: 1.25х2.5 | D58: 53000 | E58: 4061.496 | F58: 74.4 | G58: 23.8
A59: Лист г/к, ГОСТ 14637-89, ГОСТ 16523-97, ГОСТ 19903-74, ГОСТ 19281-89 (ст.09Г2С + 3000 руб/тн)
A60: 2 | B60: Ст.3сп5 | C60: 1.25х2.5 | D60: 46000 | E60: =(D60+D60*3%)/(1000/F60) -> 2487.45 | F60: =ROUNDUP(G60*(1.25*2.5),1) -> 52.5 | G60: 16.8
A61: 2.5 | B61: Ст.3сп5 | C61: 1.25х2.5 | D61: 46000 | E61: 3065.486 | F61: 64.7 | G61: 20.7
A62: 3 | B62: Ст.3сп5 | C62: 1.25х2.5 | D62: 46000 | E62: 3733.544 | F62: 78.8 | G62: 25.2
A63: 4 | B63: Ст.3сп5 | C63: 1.5х6.0 | D63: 45000 | E63: 13807.665 | F63: =ROUNDUP(G63*(1.5*6),1) -> 297.9 | G63: 33.1
A64: 5 | B64: Ст.3сп5 | C64: 1.5х6.0 | D64: 45000 | E64: 16602.57 | F64: 358.2 | G64: 39.8
A65: 6 | B65: Ст.3сп5 | C65: 1.5х6.0 | D65: 45000 | E65: 19856.34 | F65: 428.4 | G65: 47.6
A66: 8 | B66: Ст.3сп5 | C66: 1.5х6.0 | D66: 45000 | E66: 26280.45 | F66: 567 | G66: 63
A67: 10 | B67: Ст.3сп5 | C67: 1.5х6.0 | D67: 45000 | E67: 32996.565 | F67: 711.9 | G67: 79.1
A68: 12 | B68: Ст.3сп5 | C68: 1.5х6.0 | D68: 44500 | E68: 38941.416 | F68: 849.6 | G68: 94.4
A69: 14 | B69: Ст.3сп5 | C69: 1.5х6.0 | D69: 44500 | E69: 45624.159 | F69: 995.4 | G69: 110.6
A70: 16 | B70: Ст.3сп5 | C70: 1.5х6.0 | D70: 44500 | E70: 52760.6685 | F70: 1151.1 | G70: 127.9
A71: 20 | B71: Ст.3сп5 | C71: 1.5х6.0 | D71: 44500 | E71: 65507.382 | F71: 1429.2 | G71: 158.8
A72: 25 | B72: Ст.3сп5 | C72: 1.5х6.0 | D72: 44500 | E72: 81966.7305 | F72: 1788.3 | G72: 198.7
A73: 30 | B73: Ст.3сп5 | C73: 1.5х6.0 | D73: 44500 | E73: 97353.54 | F73: 2124 | G73: 236
A74: 32 | B74: Ст.3сп5 | C74: 2.0х6.0 | D74: 44500 | E74: 140805.12 | F74: =ROUNDUP(G74*(2*6),1) -> 3072 | G74: 256
A75: 36 | B75: Ст.3сп5 | C75: 2.0х6.0 | D75: 44500 | E75: 159505.8 | F75: 3480 | G75: 290
A76: 40 | B76: Ст.3сп5 | C76: 1.5х6.0 | D76: 44500 | E76: 141492.645 | F76: =ROUNDUP(G76*(1.5*6),1) -> 3087 | G76: 343
A77: Лист г/к, рифленый, ГОСТ 8568-77, ГОСТ 380-2005
A78: 4,0 (чечевица) | B78: Ст.3сп | C78: 1.5х6.0 | D78: 48000 | E78: =(D78+D78*3%)/(1000/F78) -> 14594.688 | F78: =ROUNDUP(G78*(1.5*6),1) -> 295.2 | G78: 32.8
A79: 5,0 (чечевица) | B79: Ст.3сп | C79: 1.5х6.0 | D79: 48000 | E79: 18243.36 | F79: 369 | G79: 41
A80: 6,0 (чечевица) | B80: Ст.3сп | C80: 1.5х6.0 | D80: 48000 | E80: 21847.536 | F80: 441.9 | G80: 49.1
A81: Лист г/к, ПВЛ
A82: 406 | B82: Ст.3сп | C82: 1х2.2 | D82: 50000 | E82: =(D82+D82*3%)/(1000/F82) -> 2132.1 | F82: =ROUNDUP(G82*(1*2.2),1) -> 41.4 | G82: 18.8
A83: 408 | B83: Ст.3сп | C83: 1х2.2 | D83: 50000 | E83: 2348.4 | F83: 45.6 | G83: 20.7
A84: 508 | B84: Ст.3сп | C84: 1х2.2 | D84: 50000 | E84: 2755.25 | F84: 53.5 | G84: 24.3
A85: Лист оцинкованный, ГОСТ 14918-80
A86: 0.45 | B86: Ст.08пс | C86: 1.25х2.5 | D86: 64000 | E86: =(D86+D86*3%)/(1000/F86) -> 764.672 | F86: =ROUNDUP(G86*(1.25*2.5),1) -> 11.6 | G86: 3.7
A87: 0.5 | B87: Ст.08пс | C87: 1.25х2.5 | D87: 57000 | E87: 774.972 | F87: 13.2 | G87: 4.2
A88: 0.55 | B88: Ст.08пс | C88: 1.25х2.5 | D88: 57000 | E88: 863.037 | F88: 14.7 | G88: 4.7
A89: 0.7 | B89: Ст.08пс | C89: 1.25х2.5 | D89: 57000 | E89: 1068.522 | F89: 18.2 | G89: 5.8
A90: 0.8 | B90: Ст.08пс | C90: 1.25х2.5 | D90: 55000 | E90: 1172.655 | F90: 20.7 | G90: 6.6
A91: 1 | B91: Ст.08пс | C91: 1.25х2.5 | D91: 54000 | E91: 1412.748 | F91: 25.4 | G91: 8.1
A92: 1.5 | B92: Ст.08пс | C92: 1.25х2.5 | D92: 53000 | E92: 2101.715 | F92: 38.5 | G92: 12.3
A93: 2 | B93: Ст.08пс | C93: 1.25х2.5 | D93: 57000 | E93: 2976.597 | F93: 50.7 | G93: 16.2
A94: Труба водогазопроводная, ГОСТ 3262-75
A95: Ø 15х2,8 | B95: Ст.3пс | C95: 6 | D95: 50500 | E95: =(D95+D95*3%)/(1000/F95) -> 436.926 | F95: =ROUNDUP(G95*C95,1) -> 8.4 | G95: 1.4
A96: Ø 20х2,8 | B96: Ст.3пс | C96: 9 | D96: 49500 | E96: 871.8435 | F96: 17.1 | G96: 1.9
A97: Ø 25х3,2 | B97: Ст.3пс | C97: 9 | D97: 46000 | E97: 1047.098 | F97: 22.1 | G97: 2.45
A98: Ø 32х3,2 | B98: Ст.3пс | C98: 9 | D98: 45000 | E98: 1316.34 | F98: 28.4 | G98: 3.15
A99: Ø 40х3,5 | B99: Ст.3пс | C99: 9 | D99: 45000 | E99: 1710.315 | F99: 36.9 | G99: 4.1
A100: Ø 50х3,5 | B100: Ст.3пс | C100: 6 | D100: 45000 | E100: 1446.12 | F100: 31.2 | G100: 5.2
A101: Труба электросварная, ГОСТ 10704-91
A102: Ø 57х3,5 | B102: Ст.3пс | C102: 11.7 | D102: 45000 | E102: =(D102+D102*3%)/(1000/F102) -> 2660.49 | F102: =ROUNDUP(G102*C102,1) -> 57.4 | G102: 4.9
A103: Ø 76х3,5 | B103: Ст.3пс | C103: 11.7 | D103: 45000 | E103: 3527.235 | F103: 76.1 | G103: 6.5
A104: Ø 89х3,5 | B104: Ст.3пс | C104: 11.7 | D104: 45000 | E104: 4125.15 | F104: 89 | G104: 7.6
A105: Ø 108х3,5 | B105: Ст.3пс | C105: 11.7 | D105: 45000 | E105: 5209.74 | F105: 112.4 | G105: 9.6
A106: Ø 114х4,0 | B106: Ст.3пс | C106: 11.7 | D106: 46000 | E106: 6268.374 | F106: 132.3 | G106: 11.3
A107: Ø 127х4,0 | B107: Ст.3пс | C107: 11.7 | D107: 46000 | E107: 6988.55 | F107: 147.5 | G107: 12.6
A108: Ø 133х4,0 | B108: Ст.3пс | C108: 11.7 | D108: 45000 | E108: 6998.85 | F108: 151 | G108: 12.9
A109: Ø 159х4,5 | B109: Ст.3пс | C109: 11.7 | D109: 46000 | E109: 9869.254 | F109: 208.3 | G109: 17.8
A110: Труба профильная, ГОСТ 8639-82, 8645-68
A111: 15х15х1,5 | B111: Ст.2пс | C111: 6 | D111: 52000 | E111: =(D111+D111*3%)/(1000/F111) -> 235.664 | F111: =ROUNDUP(G111*C111,1) -> 4.4 | G111: 0.73
A112: 20х20х1,5 | B112: Ст.2пс | C112: 6 | D112: 51500 | E112: 312.9655 | F112: 5.9 | G112: 0.98
A113: 20х20х2,0 | B113: Ст.2пс | C113: 6 | D113: 49000 | E113: 363.384 | F113: 7.2 | G113: 1.2
A114: 25х25х1,5 | B114: Ст.2пс | C114: 6 | D114: 51000 | E114: 404.481 | F114: 7.7 | G114: 1.28
A115: 25х25х2,0 | B115: Ст.2пс | C115: 6 | D115: 51000 | E115: 472.77 | F115: 9 | G115: 1.5
A116: 30х20х1,5 | B116: Ст.2пс | C116: 6 | D116: 51000 | E116: 393.975 | F116: 7.5 | G116: 1.25
A117: 30х30х1,5 | B117: Ст.2пс | C117: 6 | D117: 51000 | E117: 472.77 | F117: 9 | G117: 1.5
A118: 40х20х1,5 | B118: Ст.2пс | C118: 6 | D118: 51000 | E118: 467.517 | F118: 8.9 | G118: 1.47
A119: 40х25х1,5 | B119: Ст.2пс | C119: 6 | D119: 50000 | E119: 504.7 | F119: 9.8 | G119: 1.62
A120: 40х25х2,0 | B120: Ст.2пс | C120: 6 | D120: 50000 | E120: 659.2 | F120: 12.8 | G120: 2.12
A121: 40х40х1,5 | B121: Ст.3пс | C121: 6 | D121: 50000 | E121: 643.75 | F121: 12.5 | G121: 2.08
A122: 40х40х2,0 | B122: Ст.3пс | C122: 6 | D122: 49000 | E122: 772.191 | F122: 15.3 | G122: 2.55
A123: 50х25х1,5 | B123: Ст.3пс | C123: 6 | D123: 49000 | E123: 575.358 | F123: 11.4 | G123: 1.9
A124: 50х25х2,0 | B124: Ст.3пс | C124: 6 | D124: 49000 | E124: 721.721 | F124: 14.3 | G124: 2.37
A125: 50х50х2,0 | B125: Ст.3пс | C125: 6 | D125: 48000 | E125: 934.416 | F125: 18.9 | G125: 3.15
A126: 50х50х3,0 | B126: Ст.3пс | C126: 6 | D126: 48000 | E126: 1320.048 | F126: 26.7 | G126: 4.45
A127: 60х30х2,0 | B127: Ст.3пс | C127: 6 | D127: 48000 | E127: 845.424 | F127: 17.1 | G127: 2.85
A128: 60х40х2,0 | B128: Ст.3пс | C128: 6 | D128: 48000 | E128: 934.416 | F128: 18.9 | G128: 3.15
A129: 60х60х2,0 | B129: Ст.3пс | C129: 6 | D129: 48000 | E129: 1142.064 | F129: 23.1 | G129: 3.85
A130: 80х60х3,0 | B130: Ст.3пс | C130: 12 | D130: 46000 | E130: 3809.352 | F130: 80.4 | G130: 6.7
A131: 80х80х3,0 | B131: Ст.3пс | C131: 12 | D131: 45000 | E131: 4143.69 | F131: 89.4 | G131: 7.45
A132: 80х80х4,0 | B132: Ст.3пс | C132: 12 | D132: 45000 | E132: 5339.52 | F132: 115.2 | G132: 9.6
A133: 100х100х3,0 | B133: Ст.3пс | C133: 12 | D133: 45000 | E133: 5228.28 | F133: 112.8 | G133: 9.4
A134: 100х100х4,0 | B134: Ст.3пс | C134: 12 | D134: 45000 | E134: 6785.64 | F134: 146.4 | G134: 12.2
A135: 120х120х4,0 | B135: Ст.3пс | C135: 12 | D135: 46000 | E135: 8357.832 | F135: 176.4 | G135: 14.7
A136: 140х140х5,0 | B136: Ст.3пс | C136: 12 | D136: 50000 | E136: 13781.4 | F136: 267.6 | G136: 22.3
A137: Угол равнополочный, ГОСТ 8509-93
A138: 25х25х4 | B138: Ст.3пс/сп | C138: 9 | D138: 48000 | E138: =(D138+D138*3%)/(1000/F138) -> 667.44 | F138: =ROUNDUP(G138*C138,1) -> 13.5 | G138: 1.5
A139: 32х32х4 | B139: Ст.3пс/сп | C139: 9 | D139: 48000 | E139: 825.648 | F139: 16.7 | G139: 1.85
A140: 40х40х4 | B140: Ст.3пс/сп | C140: 9 | D140: 48000 | E140: 1156.896 | F140: 23.4 | G140: 2.6
A141: 45х45х4 | B141: Ст.3пс/сп | C141: 11.7 | D141: 49000 | E141: 1832.061 | F141: 36.3 | G141: 3.1
A142: 50х50х5 | B142: Ст.3пс/сп | C142: 11.7 | D142: 49000 | E142: 2361.996 | F142: 46.8 | G142: 4
A143: 63х63х5 | B143: Ст.3пс/сп | C143: 11.7 | D143: 48000 | E143: 2951.568 | F143: 59.7 | G143: 5.1
A144: 75х75х6 | B144: Ст.3пс/сп | C144: 11.7 | D144: 48500 | E144: 4151.2605 | F144: 83.1 | G144: 7.1
A145: 80х80х6 | B145: Ст.3пс/сп | C145: 11.7 | D145: 48500 | E145: 4445.995 | F145: 89 | G145: 7.6
A146: 90х90х7 | B146: Ст.3пс/сп | C146: 11.7 | D146: 49000 | E146: 5904.99 | F146: 117 | G146: 10
A147: 100х100х7 | B147: Ст.3пс/сп | C147: 11.7 | D147: 49000 | E147: 6732.698 | F147: 133.4 | G147: 11.4
A148: 110х110х7 | B148: Ст.3пс/сп | C148: 11.7 | D148: 49000 | E148: 7267.68 | F148: 144 | G148: 12.3
A149: 125х125х8 | B149: Ст.3пс/сп | C149: 11.7 | D149: 49000 | E149: 9331.903 | F149: 184.9 | G149: 15.8
A150: 140х140х10 | B150: Ст.3пс/сп | C150: 12 | D150: 49000 | E150: 13142.388 | F150: 260.4 | G150: 21.7
A151: Швеллер, ГОСТ 8240-97 (ст.09Г2С + 3000 руб/тн)
A152: № 8 | B152: Ст.3пс/сп | C152: 11.7 | D152: 47000 | E152: =(D152+D152*3%)/(1000/F152) -> 4110.009 | F152: =ROUNDUP(G152*C152,1) -> 84.9 | G152: 7.25
A153: № 10 | B153: Ст.3пс/сп | C153: 11.7 | D153: 47000 | E153: 5044.322 | F153: 104.2 | G153: 8.9
A154: № 12 | B154: Ст.3пс/сп | C154: 11.7 | D154: 48000 | E154: 6189.888 | F154: 125.2 | G154: 10.7
A155: № 14 | B155: Ст.3пс/сп | C155: 11.7 | D155: 48000 | E155: 7465.44 | F155: 151 | G155: 12.9
A156: № 16 | B156: Ст.3пс/сп | C156: 11.7 | D156: 48000 | E156: 8736.048 | F156: 176.7 | G156: 15.1
A157: № 18 | B157: Ст.3пс/сп | C157: 12 | D157: 49000 | E157: 9811.368 | F157: 194.4 | G157: 16.2
A158: № 20 | B158: Ст.3пс/сп | C158: 12 | D158: 61000 | E158: 14174.448 | F158: 225.6 | G158: 18.8
A159: № 22 | B159: Ст.3пс/сп | C159: 12 | D159: 61000 | E159: 16360.932 | F159: 260.4 | G159: 21.7
A160: № 24 | B160: Ст.3пс/сп | C160: 12 | D160: 61000 | E160: 18698.208 | F160: 297.6 | G160: 24.8
A161: № 27 | B161: Ст.3пс/сп | C161: 12 | D161: 61000 | E161: 21261.672 | F161: 338.4 | G161: 28.2
A162: № 30 | B162: Ст.3пс/сп | C162: 12 | D162: 61000 | E162: 24352.908 | F162: 387.6 | G162: 32.3
A163: Полоса г/к, ГОСТ 103-2003
A164: 40х4 | B164: Ст.3пс/сп | C164: 6 | D164: 50000 | E164: =(D164+D164*3%)/(1000/F164) -> 458.35 | F164: =ROUNDUP(G164*C164,1) -> 8.9 | G164: 1.48
A165: 50х5 | B165: Ст.3пс/сп | C165: 6 | D165: 53000 | E165: 687.834 | F165: 12.6 | G165: 2.1
A166: Сетка кладочная, ГОСТ 23279-85
A167: 50х50х4 | B167: Ст.3пс/сп | C167: 0,38х1,5 | D167: 38500 | E167: =(D167+D167*20%)/(1000/F167) -> 104.412 | F167: =ROUNDUP(G167*(0.38*1.5),2) -> 2.26 | G167: 3.95
A168: 50х50х4 | B168: Ст.3пс/сп | C168: 0,38х2,0 | D168: 38500 | E168: 139.986 | F168: =ROUNDUP(G168*(0.38*2),2) -> 3.03 | G168: 3.98
A169: 50х50х4 | B169: Ст.3пс/сп | C169: 0,51х1,5 | D169: 38500 | E169: 145.068 | F169: =ROUNDUP(G169*(0.51*1.5),2) -> 3.14 | G169: 4.1
A170: 50х50х4 | B170: Ст.3пс/сп | C170: 0,51х2,0 | D170: 38500 | E170: 195.888 | F170: =ROUNDUP(G170*(0.51*2),2) -> 4.24 | G170: 4.15
A171: 50х50х4 | B171: Ст.3пс/сп | C171: 0,64х1,5 | D171: 38500 | E171: 186.648 | F171: =ROUNDUP(G171*(0.64*1.5),2) -> 4.04 | G171: 4.2
A172: 50х50х5 | B172: Ст.3пс/сп | C172: 0,64х1,5 | D172: 38500 | E172: 284.13 | F172: 6.15 | G172: 6.4
A173: 100х100х4 | B173: Ст.3пс/сп | C173: 1,0х2,0 | D173: 38500 | E173: 189.42 | F173: =ROUNDUP(G173*(1*2),2) -> 4.1 | G173: 2.05
A174: 100х100х4 | B174: Ст.3пс/сп | C174: 1,0х3,0 | D174: 38500 | E174: 284.13 | F174: =ROUNDUP(G174*(1*3),2) -> 6.15 | G174: 2.05
A175: 100х100х4 | B175: Ст.3пс/сп | C175: 2,0х3,0 | D175: 38500 | E175: =(D175+D175*3%)/(1000/F175) -> 487.7565 | F175: =ROUNDUP(G175*(2*3),2) -> 12.3 | G175: 2.05
A176: 100х100х5 | B176: Ст.3пс/сп | C176: 2,0х3,0 | D176: 38500 | E176: =(D176+D176*2%)/(1000/F176) -> 742.203 | F176: 18.9 | G176: 3.15
A177: 150х150х4 | B177: Ст.3пс/сп | C177: 2,0х3,0 | D177: 38500 | E177: =(D177+D177*3%)/(1000/F177) -> 344.9985 | F177: 8.7 | G177: 1.45
A178: 150х150х5 | B178: Ст.3пс/сп | C178: 2,0х3,0 | D178: 38500 | E178: =(D178+D178*2%)/(1000/F178) -> 506.583 | F178: 12.9 | G178: 2.15
A179: 200х200х4 | B179: Ст.3пс/сп | C179: 2,0х3,0 | D179: 38500 | E179: =(D179+D179*20%)/(1000/F179) -> 291.06 | F179: 6.3 | G179: 1.05
A180: 200х200х5 | B180: Ст.3пс/сп | C180: 2,0х3,0 | D180: 38500 | E180: =(D180+D180*10%)/(1000/F180) -> 393.855 | F180: 9.3 | G180: 1.55
A182: Цены указаны в рублях с учетом НДС 18%.
A183: При покупке до 1 тонны действует наценка 3-5%.
A184: К крупным заказам - индивидуальный подход.
A185: Осуществляем доставку в регионы.

Sheet Лист2 (hidden)

Sheet Лист3 (hidden)
